bitfinex/quotes_ETHUSD_20250411
["timestamp","ask_amount","ask_price","bid_price","bid_amount"]
[1744382822088,7.691433,1560.2,1559.7,6.41145]
[1744382822245,6.40867,1560.4,1560.0,6.40986]
[1744382822445,6.40922,1560.3,1559.9,6.41057]
[1744382822650,12.81844,1560.3,1559.9,6.41055]
[1744382822869,6.40837,1560.5,1560.1,6.40973]
[1744382823054,6.40877,1560.4,1560.0,6.41013]
[1744382823274,6.40877,1560.4,1560.0,12.82026]
[1744382823455,6.4097,1560.2,1559.8,6.41105]
[1744382823787,6.41,1560.1,1559.7,13.58917]
[1744382824073,13.46006,1560.2,1559.8,6.41105]
[1744382824575,6.40948,1560.2,1559.9,6.4105]
[1744382824754,12.81853,1560.3,1559.9,6.4105]
[1744382824955,3.86078362,1560.6,1559.8,6.41095]
[1744382824956,12.8193,1560.2,1559.8,6.41095]
[1744382825183,6.40864,1560.4,1559.8,0.47317596]
[1744382825389,6.40904,1560.3,1559.9,6.41043]
[1744382825584,12.81839,1560.3,1559.9,6.41043]
[1744382825749,6.40904,1560.3,1559.9,12.82109]
[1744382826249,12.81822,1560.3,1559.9,6.41043]
[1744382826792,6.40949,1560.2,1559.8,6.41098]
[1744382826943,6.40995,1560.1,1559.7,7.17792]
[1744382827580,6.40911,1560.3,1559.9,6.41047]
[1744382827747,6.40738,1560.7,1560.0,0.06410223]
[1744382827949,0.3343426,1561.0,1560.4,6.40855]
[1744382828192,6.40728,1560.8,1560.4,12.81704]
[1744382828497,6.40562,1561.2,1560.8,6.40692]
[1744382828655,0.05,1561.4,1560.9,6.40648]
[1744382828656,6.40525,1561.3,1560.9,6.40648]
[1744382828848,6.40628,1561.0,1560.6,6.40773]
[1744382829048,6.40652,1561.0,1560.6,6.40772]
[1744382829268,6.40542,1561.2,1560.8,6.40675]
[1744382829789,6.40542,1561.2,1560.6,6.40769]
[1744382829790,6.40629,1561.0,1560.6,6.40769]
[1744382829949,6.40629,1561.0,1560.6,12.81526]
[1744382830154,12.81172,1561.1,1560.7,6.40725]
[1744382830468,6.405,1561.3,1560.8,6.40659]
[1744382830641,0.6455,1561.3,1561.0,6.40581]
[1744382830848,6.45466,1561.4,1561.0,6.40581]
[1744382831047,6.45466,1561.4,1561.0,12.81181]
[1744382831396,0.05,1561.4,1561.1,6.40573]
[1744382831691,6.45467,1561.4,1561.1,6.4057]
[1744382831847,6.45467,1561.4,1561.1,12.81126]
[1744382832047,6.45467,1561.4,1561.1,6.40556]
[1744382832468,0.05,1561.4,1561.0,1.27055024]
[1744382832792,12.81002,1561.3,1560.9,12.81295]
[1744382832995,0.05,1561.4,1560.9,1.42060221]
[1744382833313,0.05,1561.4,1561.2,12.81046]
[1744382833783,6.40517,1561.3,1560.9,16.635055]
[1744382833947,6.40517,1561.3,1560.9,16.634945]
[1744382834150,6.45459,1561.4,1561.1,6.4007]
[1744382834596,6.45459,1561.4,1561.1,12.8064]
[1744382834748,0.05,1561.4,1561.2,6.40508]
[1744382834944,0.05,1561.4,1561.3,6.40491]
[1744382836396,0.05,1561.4,1561.3,7.81994808]
[1744382836707,0.05,1561.4,1561.3,7.75591]
[1744382836853,0.05,1561.4,1561.3,9.262523]
[1744382837484,0.05,1561.4,1561.3,7.20591]
[1744382838985,0.05,1561.4,1561.3,12.13955878]
[1744382839151,0.005,1561.7,1561.6,6.40368]
[1744382839352,0.005,1561.7,1561.6,7.18358]
[1744382840090,0.005,1561.7,1561.4,7.18421]
[1744382840297,0.005,1561.7,1561.5,12.80768]
[1744382840507,0.005,1561.7,1561.6,6.40368]
[1744382840808,0.005,1561.7,1561.6,6.46771171]
[1744382841095,0.005,1561.7,1561.6,6.40368]
[1744382841295,0.005,1561.7,1561.5,13.78851353]
[1744382841591,0.005,1561.7,1561.6,6.40368]
[1744382841998,0.005,1561.7,1561.6,7.22958]
[1744382842206,0.05,1562.4,1561.9,0.55]
[1744382842495,0.05,1562.4,1561.5,11.30461488]
[1744382842496,6.45044,1562.4,1562.0,7.22776]
[1744382842665,6.40098,1562.3,1562.0,0.8259]
[1744382842870,6.40098,1562.3,1561.9,6.40226]
[1744382843073,1.285142,1562.3,1561.9,6.40239]
[1744382843267,6.40168,1562.1,1561.8,7.16994]
[1744382843472,6.40168,1562.1,1561.7,6.4031]
[1744382843686,6.4009,1562.3,1561.7,6.40327]
[1744382843885,6.4009,1562.3,1561.9,6.40213]
[1744382844206,0.05,1562.4,1562.1,6.40153]
[1744382844506,7.735518,1562.4,1562.0,6.40183]
[1744382844802,0.05,1562.4,1561.9,0.8015]
[1744382845100,0.05,1562.4,1562.3,6.40081]
[1744382845705,0.05,1562.4,1562.2,6.40104]
[1744382846277,0.05,1562.4,1562.1,6.40151]
[1744382846599,0.05,1562.4,1562.2,12.80207]
[1744382846769,0.05,1562.4,1562.2,12.80211]
[1744382846967,0.05,1562.4,1562.2,6.40103]
[1744382847692,0.05,1562.4,1562.3,6.40081]
[1744382848099,0.05,1562.4,1562.2,6.40103]
[1744382848405,0.05,1562.4,1561.9,7.20394]
[1744382848406,6.40087,1562.3,1562.0,6.40201]
[1744382848574,6.40087,1562.3,1562.0,6.40191]
[1744382849082,7.685988,1562.3,1561.9,6.40233]
[1744382849285,0.05,1562.4,1562.2,6.40097]
[1744382849486,0.05,1562.4,1562.1,6.40132]
[1744382849803,6.45065,1562.4,1562.0,12.80376]
[1744382850110,6.45065,1562.4,1562.1,6.4015]
[1744382850279,6.4506,1562.4,1562.0,6.40186]
[1744382850480,6.40158,1562.2,1561.6,0.8135]
[1744382850820,6.40137,1562.2,1561.8,6.4026]
[1744382850986,12.80293,1562.2,1561.8,6.4026]
[1744382851193,6.40233,1562.0,1561.6,6.40351]
[1744382851503,6.40303,1561.8,1561.5,0.48510755]
[1744382851708,12.80506,1561.9,1561.5,0.48510755]
[1744382852107,6.40343,1561.7,1561.3,49.935]
[1744382852308,6.40293,1561.8,1561.2,7.20841]
[1744382852511,6.40293,1561.8,1561.2,7.27245327]
[1744382852722,6.4033,1561.7,1561.2,2.6077555]
[1744382852918,7.043223,1561.8,1561.2,9.0130655]
[1744382853727,7.042283,1562.0,1561.4,6.40436]
[1744382854003,0.640233,1562.0,1561.5,6.40399]
[1744382854214,12.80375,1562.1,1561.6,0.8243]
[1744382854395,6.40206,1562.0,1561.6,0.8243]
[1744382854603,12.80435,1562.0,1561.6,0.8243]
[1744382854810,6.40206,1562.0,1561.6,0.8243]
[1744382855188,6.40246,1561.9,1561.4,0.8243]
[1744382855620,6.40246,1561.9,1561.4,7.22876]
[1744382855915,12.80519,1561.9,1561.5,0.06403395]
[1744382856125,6.40246,1561.9,1561.5,0.06403395]
[1744382856291,6.40288,1561.8,1561.5,0.06403395]
[1744382856486,6.40382,1561.6,1561.2,1.74051223]
[1744382856799,6.40382,1561.6,1561.2,2.53041223]
[1744382857101,6.40327,1561.7,1561.3,0.06404096]
[1744382857285,12.80679,1561.7,1561.2,8.14560223]
[1744382857486,6.40532,1561.2,1561.1,0.48791179]
[1744382858096,6.40458,1561.4,1560.8,4.21911737]
[1744382858293,12.80929,1561.4,1561.0,0.8254]
[1744382858497,6.40458,1561.4,1561.0,0.8254]
[1744382858693,12.80939,1561.4,1561.0,0.8254]
[1744382859036,12.8093,1561.4,1561.0,0.8254]
[1744382859240,6.40572,1561.2,1560.8,5.03081737]
[1744382859439,6.40656,1560.9,1560.8,4.21911737]
[1744382859621,6.40633,1561.0,1560.8,4.21911737]
[1744382860134,6.40602,1561.1,1560.8,4.21911737]
[1744382860341,6.4045,1561.4,1560.8,4.21911737]
[1744382860541,6.4045,1561.4,1560.7,0.7586]
[1744382860542,12.81274,1561.0,1560.7,0.7586]
[1744382860694,6.40659,1560.9,1560.7,0.7586]
[1744382861040,12.81263,1561.0,1560.8,0.5]
[1744382861195,6.40656,1560.9,1560.8,0.5]
[1744382861728,12.81334,1560.9,1560.7,0.7586]
[1744382862035,6.40622,1561.0,1560.7,0.7586]
[1744382862267,12.81265,1561.0,1560.7,0.7586]
[1744382862560,6.40662,1560.9,1560.7,0.7586]
[1744382862718,12.81349,1560.9,1560.7,0.7586]
[1744382863517,6.40764,1560.7,1560.4,7.17139]
[1744382863750,6.40671,1560.9,1560.5,6.40798]
[1744382863954,12.81357,1560.9,1560.5,6.40798]
[1744382864270,6.40729,1560.8,1560.4,13.57979]
[1744382864426,6.40614,1561.0,1560.4,0.7628]
[1744382864747,6.40614,1561.0,1560.4,0.82687836]
[1744382864748,6.40769,1560.7,1560.4,0.82687836]
[1744382865043,6.40769,1560.7,1560.4,7.23524836]
[1744382865247,6.40706,1560.8,1560.4,7.9589032]
[1744382865441,6.40706,1560.8,1560.4,7.89482484]
[1744382865752,6.40706,1560.8,1560.4,14.30332484]
[1744382865753,12.81426,1560.8,1560.4,14.30332484]
[1744382866047,12.81438,1560.8,1560.5,6.90812]
[1744382866256,6.40706,1560.8,1560.5,13.31619]
[1744382866462,12.8125,1561.0,1560.6,6.40758]
[1744382866665,6.40537,1561.2,1560.8,6.40682]
[1744382867166,12.81095,1561.2,1560.8,6.40682]
[1744382867742,12.49415,1561.5,1560.9,6.40654]
[1744382867946,12.49415,1561.5,1560.7,0.7621]
[1744382867947,6.40461,1561.4,1561.1,7.17731]
[1744382868126,6.40461,1561.4,1561.1,13.58293]
[1744382868328,6.40376,1561.6,1561.3,6.40477]
[1744382868663,6.40335,1561.7,1561.4,6.40423]
[1744382868815,12.80604,1561.8,1561.5,6.40397]
[1744382869021,12.80604,1561.8,1561.5,0.8144]
[1744382869260,6.40296,1561.8,1561.5,7.21836]
[1744382869563,6.40296,1561.8,1561.5,7.21842]
[1744382869764,6.40296,1561.8,1561.5,13.62239]
[1744382870048,6.40253,1561.9,1561.5,8.580609]
[1744382870443,6.40253,1561.9,1561.6,6.40368]
[1744382871131,12.49215,1562.0,1561.6,6.40353]
[1744382871341,6.40309,1561.8,1561.5,7.2184]
[1744382871520,12.80618,1561.8,1561.5,7.2184]
[1744382871722,6.4023,1562.0,1561.5,0.8144]
[1744382871968,6.40234,1562.0,1561.6,12.80695]
[1744382872145,6.40234,1562.0,1561.6,6.40339]
[1744382872321,6.40257,1561.9,1561.6,6.40339]
[1744382872524,6.40291,1561.8,1561.5,13.62254]
[1744382872754,6.40291,1561.8,1561.5,14.984794]
[1744382873029,6.40257,1561.9,1561.6,6.40359]
[1744382873219,6.40257,1561.9,1561.6,6.40353]
[1744382873539,12.80525,1561.9,1561.5,14.984634]
[1744382874667,12.80525,1561.9,1561.5,8.580644]
[1744382874969,12.8069,1561.7,1561.5,0.8144]
[1744382875267,6.40368,1561.6,1561.5,0.8144]
[1744382875470,6.40368,1561.6,1561.3,7.20142]
[1744382875971,7.683025,1561.9,1561.5,6.40383]
[1744382875972,6.4026,1561.9,1561.5,6.40383]
[1744382876264,12.80523,1561.9,1561.6,6.4034]
[1744382876464,6.4026,1561.9,1561.6,6.40359]
[1744382876767,6.4026,1561.9,1561.5,6.40404]
[1744382877164,6.40334,1561.7,1561.4,12.80881]
[1744382877353,6.40377,1561.6,1561.3,7.20169]
[1744382877537,6.40377,1561.6,1561.3,0.7969]
[1744382877740,12.80848,1561.5,1561.3,0.7969]
[1744382878081,12.80848,1561.5,1561.2,6.40517]
[1744382878241,6.40532,1561.2,1561.1,4.21911737]
[1744382881273,6.40532,1561.2,1561.1,7.37e-06]
[1744382881778,6.40779,1560.6,1560.5,7.37e-06]
[1744382884292,6.40705,1560.8,1560.4,13.62675]
[1744382884493,6.40576,1561.1,1560.4,2.172575]
[1744382884785,6.40702,1560.8,1560.4,7.21819]
[1744382884996,6.40702,1560.8,1560.4,13.62678]
[1744382885203,6.40702,1560.8,1560.5,6.40815]
[1744382885348,6.40574,1561.1,1560.4,7.21819]
[1744382885549,6.40672,1560.9,1560.4,0.8099]
[1744382885743,6.40745,1560.7,1560.4,0.8099]
[1744382886002,6.40715,1560.8,1560.4,7.21839]
[1744382886315,6.40821,1560.5,1560.2,7.21353]
[1744382886616,6.40697,1560.8,1560.2,7.21354]
[1744382886818,6.40822,1560.5,1560.2,0.8042]
[1744382887019,6.40707,1560.8,1560.4,6.40838]
[1744382887222,6.40749,1560.7,1560.3,12.81786]
[1744382887375,6.40749,1560.7,1560.3,12.81779]
[1744382887584,12.81528,1560.7,1560.3,12.81779]
[1744382888014,6.40671,1560.9,1560.5,6.40818]
[1744382888217,6.40656,1560.9,1560.4,6.40852]
[1744382888407,6.40758,1560.7,1560.4,6.40855]
[1744382888604,6.40812,1560.6,1560.3,1.362199]
[1744382888919,4.29659167,1561.1,1560.4,6.40821]
[1744382888920,6.40712,1560.8,1560.4,6.40821]
[1744382889073,6.40712,1560.8,1560.5,6.40802]
[1744382889275,12.4966,1560.9,1560.5,12.8161]
[1744382889488,6.40721,1560.8,1560.5,6.40802]
[1744382889696,12.81448,1560.8,1560.5,6.40802]
[1744382889893,12.8145,1560.8,1560.4,13.457981]
[1744382890121,6.40721,1560.8,1560.4,13.457871]
[1744382890592,12.49665,1560.9,1560.5,1.3457871]
[1744382890778,6.40701,1560.8,1560.5,6.40807]
[1744382890976,12.81416,1560.8,1560.5,6.40807]
[1744382891179,6.40779,1560.6,1560.4,0.640821]
[1744382891420,6.40779,1560.6,1560.3,6.40893]
[1744382891603,6.40779,1560.6,1560.3,12.81786]
[1744382891805,6.40842,1560.5,1560.2,0.8042]
[1744382891978,6.40729,1560.8,1560.4,6.40848]
[1744382892328,12.81444,1560.8,1560.5,6.40817]
[1744382892528,6.40715,1560.8,1560.5,6.40817]
[1744382892854,6.40715,1560.8,1560.5,6.40808]
[1744382893016,12.81266,1561.0,1560.6,6.40779]
[1744382893192,6.09,1561.2,1560.7,6.40721]
[1744382893395,6.40633,1561.0,1560.7,6.40721]
[1744382893707,6.4067,1560.9,1560.6,6.40766]
[1744382894018,12.8118,1561.1,1560.7,6.4071]
[1744382894223,6.40619,1561.0,1560.8,1.0]
[1744382894408,12.81183,1561.1,1560.8,1.0]
[1744382894606,6.40617,1561.0,1560.8,1.0]
[1744382894786,6.40543,1561.2,1560.8,1.74071]
[1744382894986,12.8109,1561.2,1560.9,6.40644]
[1744382895388,12.81096,1561.2,1560.9,6.40644]
[1744382895919,6.40576,1561.1,1560.8,15.37829]
[1744382896499,18.90009,1561.3,1561.0,6.40605]
[1744382896701,6.40502,1561.3,1561.0,6.40602]
[1744382897011,6.09,1561.4,1560.8,8.97129]
[1744382897187,12.81271,1561.0,1560.8,1.0]
[1744382897520,6.4062,1561.0,1560.8,1.0]
[1744382897722,6.40656,1560.9,1560.8,1.0]
[1744382898789,6.09,1561.3,1560.8,7.40692]
[1744382899124,12.81049,1561.3,1560.9,12.8127]
[1744382899420,6.40544,1561.2,1560.9,6.40626]
[1744382899619,12.81091,1561.2,1560.9,6.40626]
[1744382900009,12.81091,1561.2,1560.8,13.81366]
[1744382900426,6.40576,1561.1,1560.8,7.40683]
[1744382900596,12.81188,1561.1,1560.8,7.40683]
[1744382900797,6.40576,1561.1,1560.8,7.40683]
[1744382901010,6.40502,1561.3,1561.0,6.406]
[1744382901204,12.81013,1561.3,1561.0,6.406]
[1744382901411,6.40534,1561.2,1560.8,8.78819]
[1744382901620,12.81187,1561.1,1560.8,7.40677]
[1744382901792,12.81167,1561.1,1560.8,7.40677]
[1744382902109,6.40579,1561.1,1560.8,7.40677]
[1744382902315,6.40621,1561.0,1560.8,1.0]
[1744382902528,6.40656,1560.9,1560.8,1.0]
[1744382904223,7.046831,1561.0,1560.8,1.0]
[1744382904547,6.40656,1560.9,1560.8,1.0]
[1744382907401,15.49656,1560.9,1560.8,1.0]
[1744382908140,12.49656,1560.9,1560.8,1.0]
[1744382910836,19.79315167,1560.9,1560.8,1.0]
[1744382911004,19.79315167,1560.9,1560.1,0.8273]
[1744382911005,6.4092,1560.3,1560.1,0.8273]
[1744382911217,12.81908,1560.2,1559.9,7.1989]
[1744382911409,6.40996,1560.1,1559.9,0.7884]
[1744382911810,12.81997,1560.1,1559.9,0.7884]
[1744382912132,6.4108,1559.9,1559.7,9.667]
[1744382912332,6.41119,1559.8,1559.5,5.56211791]
[1744382912843,6.41176,1559.7,1559.4,0.8299]
[1744382913147,12.8235,1559.7,1559.4,0.8299]
[1744382913348,6.41219,1559.6,1559.4,0.8299]
[1744382913563,6.09,1560.0,1559.4,7.24248]
[1744382913842,6.09,1560.0,1559.6,6.41173]
[1744382913843,12.50035,1560.0,1559.6,6.41173]
[1744382914204,12.82165,1559.9,1559.5,6.41229]
[1744382914515,6.4107,1559.9,1559.5,6.41229]
[1744382914717,6.4107,1559.9,1559.5,12.82445]
[1744382914954,6.41042,1560.0,1559.6,13.69354601]
[1744382915247,12.81917,1560.2,1559.7,6.41148]
[1744382915534,12.81917,1560.2,1559.9,0.806]
[1744382915917,6.40988,1560.1,1559.9,0.806]
[1744382916112,12.81762,1560.4,1560.0,6.41011]
[1744382916427,6.40909,1560.3,1559.9,15.233262]
[1744382916737,6.40909,1560.3,1560.0,6.41003]
[1744382917113,12.81836,1560.3,1559.9,8.822812]
[1744382917407,6.40909,1560.3,1560.0,7.2925112]
[1744382917613,6.40909,1560.3,1560.0,0.8822812]
[1744382917819,6.41004,1560.1,1559.9,0.806]
[1744382918134,12.82068,1560.0,1559.8,8.845]
[1744382918299,6.41066,1559.9,1559.8,8.845]
[1744382918505,12.81994,1560.1,1559.7,7.23962]
[1744382918732,12.49866,1560.4,1559.7,2.436862]
[1744382919038,6.40988,1560.1,1559.8,6.41082]
[1744382919440,6.40988,1560.1,1559.8,12.82178]
[1744382919745,12.81931,1560.2,1559.8,6.41082]
[1744382919930,12.82012,1560.1,1559.8,6.41106]
[1744382920304,6.41027,1560.0,1559.7,8.848222]
[1744382920515,6.4107,1559.9,1559.7,0.8284]
[1744382920720,6.41107,1559.8,1559.6,8.845]
[1744382921149,18.90995,1560.1,1559.7,6.41134]
[1744382921309,7.980995,1560.1,1559.6,15.25677]
[1744382921509,12.82085,1560.0,1559.7,6.41142]
[1744382921751,18.90991,1560.1,1559.8,6.4109]
[1744382921905,6.41041,1560.0,1559.7,6.41148]
[1744382922231,6.41041,1560.0,1559.7,6.41138]
[1744382922428,12.49987,1560.1,1559.8,12.822]
[1744382922645,6.09,1560.1,1559.8,0.8114]
[1744382922939,6.699,1560.1,1559.8,0.8114]
[1744382923143,6.41038,1560.0,1559.7,7.19884]
[1744382923348,6.699,1560.1,1559.6,15.25679]
[1744382923349,6.41099,1559.9,1559.6,8.845]
[1744382923654,0.609,1560.1,1559.6,21.66845]
[1744382923857,6.41052,1560.0,1559.6,21.66845]
[1744382924057,6.41097,1559.9,1559.6,8.845]
[1744382924246,7.112272,1560.0,1559.6,8.845]
[1744382924553,13.522702,1560.0,1559.7,6.41138]
[1744382924917,6.41078,1559.9,1559.6,21.66854]
[1744382925457,6.791952,1560.0,1559.6,8.845]
[1744382925659,13.202352,1560.0,1559.7,6.41134]
[1744382925955,7.7311152,1559.9,1559.6,6.41184]
[1744382926191,6.4111,1559.8,1559.5,13.57996]
[1744382926332,6.791952,1560.0,1559.5,13.57996]
[1744382926333,13.202412,1560.0,1559.7,6.41126]
[1744382926672,6.791952,1560.0,1559.5,7.16777]
[1744382926972,6.41157,1559.7,1559.5,0.7556]
[1744382927134,7.052727,1559.7,1559.3,7.16879]
[1744382927335,6.41238,1559.5,1559.3,0.7558]
[1744382927534,12.82411,1559.6,1559.3,7.16882]
[1744382927972,6.4124,1559.5,1559.3,0.7558]
[1744382928472,12.50113,1559.8,1559.5,6.41228]
[1744382928473,6.09,1559.8,1559.5,6.41228]
[1744382928682,6.41083,1559.9,1559.7,0.7803]
[1744382929266,7.112292,1560.0,1559.7,13.60293]
[1744382929479,6.699,1560.1,1559.8,6.41099]
[1744382929775,12.81931,1560.2,1559.8,6.41096]
[1744382929981,12.81931,1560.2,1559.7,9.6273]
[1744382929982,6.4104,1560.0,1559.7,16.03858]
[1744382930140,6.4104,1560.0,1559.7,22.44993]
[1744382930334,12.81998,1560.1,1559.8,6.41103]
[1744382930569,6.40986,1560.1,1559.8,12.82206]
[1744382930772,6.41031,1560.0,1559.7,16.03867]
[1744382931074,7.691916,1560.1,1559.7,16.03867]
[1744382931075,6.40996,1560.1,1559.7,16.03865]
[1744382931239,6.40996,1560.1,1559.8,6.41094]
[1744382931440,6.40984,1560.2,1559.9,6.41033]
[1744382931760,6.40984,1560.2,1559.9,13.63432]
[1744382932075,18.90845,1560.3,1560.0,6.40997]
[1744382932229,12.81845,1560.3,1560.0,6.40997]
[1744382932435,6.40946,1560.2,1559.9,13.63462]
[1744382932631,6.40946,1560.2,1559.9,7.22405]
[1744382933177,6.41107,1559.8,1559.7,0.8055]
[1744382933382,6.4121,1559.6,1559.4,9.6525]
[1744382933592,6.4121,1559.6,1559.1,49.996]
[1744382933593,6.41335,1559.3,1559.1,0.05]
[1744382933803,6.41354,1559.2,1559.1,0.05]
[1744382935160,6.41284,1559.4,1559.1,0.05]
[1744382935461,6.41231,1559.5,1559.1,0.05]
[1744382935683,6.41326,1559.3,1559.1,0.05]
[1744382936063,6.41279,1559.4,1559.1,0.05]
[1744382936279,6.41279,1559.4,1559.1,6.46388]
[1744382936778,6.41279,1559.4,1559.2,0.776]
[1744382937321,14.108289,1559.4,1559.2,0.776]
[1744382937613,12.83076,1558.8,1558.6,5.56211791]
[1744382937767,10.698676,1558.7,1558.6,5.56211791]
[1744382937969,7.698676,1558.7,1558.6,5.56211791]
[1744382938395,12.83487,1558.3,1558.1,0.05]
[1744382938574,6.41724,1558.3,1558.1,0.05]
[1744382938790,6.4168,1558.5,1558.1,6.46778]
[1744382938988,6.4168,1558.5,1558.2,6.41764]
[1744382939335,12.83222,1558.6,1558.2,6.41764]
[1744382939532,12.83222,1558.6,1558.2,13.64471]
[1744382939533,7.8275896,1558.6,1558.2,13.64471]
[1744382939687,6.41643,1558.5,1558.2,7.22707]
[1744382939886,7.8275896,1558.6,1558.2,13.64455]
[1744382940087,1.4115296,1558.6,1558.2,0.8096]
[1744382940330,6.4168,1558.5,1558.2,7.22724]
[1744382940632,6.41584,1558.7,1558.3,6.41724]
[1744382940836,6.41599,1558.7,1558.2,7.22708]
[1744382941125,12.83183,1558.7,1558.3,6.41723]
[1744382941337,6.41478,1558.9,1558.6,0.8024]
[1744382941487,7.056488,1558.9,1558.5,6.41637]
[1744382941694,0.641478,1558.9,1558.3,0.8024]
[1744382941892,6.41656,1558.5,1558.3,0.8024]
[1744382942137,6.41691,1558.4,1558.1,7.23252]
[1744382942457,6.41608,1558.6,1558.3,6.4171]
[1744382942731,12.83233,1558.6,1558.2,6.41746]
[1744382943034,6.41697,1558.4,1558.1,7.23261]
[1744382943241,6.41697,1558.4,1558.1,0.8146]
[1744382943744,6.41645,1558.5,1558.1,13.65056]
[1744382943918,6.41602,1558.6,1558.2,6.41749]
[1744382943919,12.83217,1558.6,1558.2,6.41749]
[1744382944114,6.41645,1558.5,1558.2,6.41749]
[1744382944322,7.058095,1558.5,1558.2,6.41764]
[1744382944930,13.474715,1558.5,1558.2,6.41764]
[1744382945230,7.058095,1558.5,1558.1,13.65048]
[1744382945535,12.83231,1558.6,1558.2,12.83514]
[1744382945734,6.4157,1558.7,1558.3,6.41692]
[1744382945890,6.41619,1558.6,1558.3,6.41692]
[1744382946296,6.4156,1558.7,1558.3,12.83399]
[1744382946297,12.83137,1558.7,1558.3,12.83399]
[1744382946605,14.2086549,1558.7,1558.3,6.41692]
[1744382947005,6.41604,1558.6,1558.3,6.41692]
[1744382947338,12.83223,1558.6,1558.2,12.83528]
[1744382947517,12.83223,1558.6,1558.2,6.41764]
[1744382947721,6.41714,1558.4,1558.1,0.8146]
[1744382947893,12.83433,1558.4,1558.1,0.8146]
[1744382948233,6.41714,1558.4,1558.1,0.8146]
[1744382948436,6.41714,1558.4,1558.1,7.23264]
[1744382948732,6.41714,1558.4,1558.1,13.65057]
[1744382949031,1.283223,1558.5,1558.1,0.8146]
[1744382949240,6.41766,1558.2,1558.1,0.05]
[1744382949739,6.41745,1558.3,1558.1,0.05]
[1744382950207,6.41766,1558.2,1558.1,0.05]
[1744382950993,12.99683225,1558.2,1558.1,0.05]
[1744382951237,15.58000348,1558.2,1558.1,0.05]
[1744382952136,16.13000348,1558.2,1558.1,0.05]
[1744382952433,19.13000348,1558.2,1558.1,0.05]
[1744382953022,3.0,1558.0,1557.3,16.04021]
[1744382953223,6.42013,1557.7,1557.3,16.04014]
[1744382953423,0.642013,1557.7,1557.5,6.42052]
[1744382953623,12.8389,1557.8,1557.4,12.84157]
[1744382954227,6.42016,1557.6,1557.3,6.42135]
[1744382954647,6.42016,1557.6,1557.3,6.42132]
[1744382954844,12.50945,1557.8,1557.1,11.63698383]
[1744382955160,12.50945,1557.8,1557.5,6.42032]
[1744382955357,7.670775,1557.7,1557.4,7.20284]
[1744382955518,7.670775,1557.7,1557.4,7.20281]
[1744382955720,6.42041,1557.6,1557.4,0.782]
[1744382955965,6.42037,1557.6,1557.2,13.67089]
[1744382956120,6.42013,1557.6,1557.1,6.47213]
[1744382956320,0.642013,1557.5,1557.1,0.05]
[1744382956522,6.42096,1557.4,1557.1,6.47212]
[1744382956825,0.642013,1557.5,1557.1,0.05]
[1744382957031,6.42145,1557.3,1557.1,0.05]
[1744382957927,12.84206,1557.4,1557.1,0.05]
[1744382958133,7.705676,1557.3,1557.1,0.05]
[1744382959218,6.42178,1557.2,1557.1,0.05]
[1744382959417,1.284206,1557.3,1557.1,0.05]
[1744382959655,7.705746,1557.3,1557.1,0.05]
[1744382959961,6.09,1557.4,1557.1,0.05]
[1744382960185,6.09,1557.4,1557.2,6.42167]
[1744382960376,6.09,1557.4,1557.2,12.84334]
[1744382960577,6.09,1557.4,1557.2,6.42167]
[1744382961319,12.51113,1557.4,1557.1,6.4721]
[1744382961435,18.93226,1557.4,1557.1,6.4721]
[1744382961636,6.42144,1557.3,1557.1,0.05]
[1744382961978,6.42178,1557.2,1557.1,0.05]
[1744382962275,6.42144,1557.3,1557.1,0.05]
[1744382962463,12.84306,1557.3,1557.1,0.05]
[1744382962768,14.404306,1557.4,1557.1,0.05]
[1744382962971,14.404306,1557.4,1557.1,6.47208]
[1744382963272,6.42144,1557.3,1557.1,0.05]
[1744382963472,6.09,1557.4,1557.2,6.42177]
[1744382963781,6.09,1557.4,1557.1,7.27766]
[1744382963782,12.51109,1557.4,1557.1,7.27756]
[1744382963999,6.42178,1557.2,1557.1,0.05]
[1744382964306,15.51178,1557.2,1557.1,0.05]
[1744382965101,6.09,1557.2,1557.1,6.47219]
[1744382965306,6.09,1557.2,1557.1,0.05]
[1744382965462,3.0,1557.5,1557.1,0.05]
[1744382965662,6.42178,1557.2,1557.1,0.05]
[1744382965863,6.42153,1557.3,1557.1,0.05]
[1744382966568,6.42104,1557.4,1557.1,6.47205]
[1744382966764,6.42172,1557.3,1557.1,0.05]
[1744382966972,12.84307,1557.3,1557.1,0.05]
[1744382967186,6.42178,1557.2,1557.1,0.05]
[1744382967486,12.84302,1557.3,1557.1,0.05]
[1744382967932,6.4215,1557.3,1557.1,0.05]
[1744382968091,13.6438271,1557.3,1557.1,0.05]
[1744382968425,7.2220671,1557.3,1557.1,0.05]
[1744382968622,0.8005671,1557.3,1557.1,6.47203]
[1744382968819,6.42104,1557.4,1557.1,6.47203]
[1744382969125,6.42104,1557.4,1557.1,6.47209]
[1744382969314,6.42137,1557.3,1557.1,0.05]
[1744382970126,6.42104,1557.4,1557.1,6.47218]
[1744382970331,6.42104,1557.4,1557.1,6.47207]
[1744382970500,12.84213,1557.4,1557.1,6.47207]
[1744382970701,6.42157,1557.3,1557.1,0.05]
[1744382970910,6.42178,1557.2,1557.1,0.05]